bitfinex-derivatives/quotes_ETHF0:USTF0_20250702
["timestamp","ask_amount","ask_price","bid_price","bid_amount"]
[1751433962170,34.15314,2441.3,2441.2,2.87465]
[1751433962369,34.15314,2441.3,2441.2,2.0555]
[1751433962570,34.14214,2441.3,2441.2,4.41415243]
[1751433963071,26.14214,2441.3,2441.2,4.41415243]
[1751433964273,26.14214,2441.3,2441.2,5.23330243]
[1751433964467,26.14214,2441.3,2441.2,2.0555]
[1751433965266,26.14214,2441.3,2441.2,1.376]
[1751433966276,26.13814,2441.3,2441.2,3.73465243]
[1751433966469,25.319,2441.3,2441.2,4.55380243]
[1751433966669,26.13812,2441.3,2441.2,4.55380243]
[1751433967375,26.13812,2441.3,2441.2,3.73465243]
[1751433967575,26.13812,2441.3,2441.2,1.376]
[1751433968477,26.13812,2441.3,2441.2,2.19515]
[1751433969479,26.13812,2441.3,2441.2,1.376]
[1751433970980,0.8191,2441.4,2441.3,0.8191]
[1751433971180,26.1291,2441.4,2441.3,4.87807454]
[1751433972180,26.1291,2441.4,2441.3,4.05897454]
[1751433977479,0.81912,2441.3,2441.2,1.376]
[1751433977679,1.52182,2441.3,2441.2,1.376]
[1751433981373,0.81915,2441.2,2441.1,5.68213631]
[1751433982378,0.81918,2441.1,2441.0,5.68213631]
[1751433982577,28.46883243,2441.1,2440.9,5.68213631]
[1751433982778,1.51162,2441.0,2440.9,5.68213631]
[1751433982973,0.6924,2441.0,2440.8,5.68213631]
[1751433983179,3.17790243,2440.9,2440.8,5.68213631]
[1751433983382,3.17790243,2440.9,2440.7,5.68213631]
[1751433983580,26.10829,2440.8,2440.7,5.68213631]
[1751433983988,0.81932,2440.7,2440.6,6.38683631]
[1751433984281,1.48402,2440.7,2440.6,6.38683631]
[1751433984688,1.48402,2440.7,2440.6,0.7047]
[1751433985089,0.81935,2440.6,2440.5,5.68213631]
[1751433985982,0.81939,2440.5,2440.4,8.45013631]
[1751433986787,0.81939,2440.5,2440.4,2.768]
[1751433988487,0.81945,2440.3,2440.2,5.68213631]
[1751433988692,0.81949,2440.2,2440.1,5.68213631]
[1751433989692,0.6597,2440.4,2440.2,0.81949]
[1751433989693,0.81947,2440.3,2440.2,0.81949]
[1751433990292,0.81947,2440.3,2440.0,49.16473631]
[1751433990293,0.81949,2440.2,2440.0,49.16473631]
[1751433990593,0.81949,2440.2,2440.0,49.98425631]
[1751433990890,0.81949,2440.2,2440.1,1.3092]
[1751433991098,0.81952,2440.1,2440.0,42.1734]
[1751433991393,0.81955,2440.0,2439.9,5.68213631]
[1751433991694,0.81956,2440.0,2439.8,6.35083631]
[1751433991894,26.79714,2440.1,2439.9,2.20939]
[1751433992094,26.79714,2440.1,2440.0,2.20935]
[1751433992394,26.79714,2440.1,2440.0,6.26404597]
[1751433992594,25.281,2440.1,2440.0,4.56798243]
[1751433992984,25.281,2440.1,2440.0,5.26008243]
[1751433993794,26.10052,2440.1,2440.0,5.26008243]
[1751433994196,25.281,2440.1,2440.0,5.26008243]
[1751433994395,25.281,2440.1,2440.0,9.3147784]
[1751433995291,25.281,2440.1,2440.0,8.6226784]
[1751433996998,26.10052,2440.1,2440.0,5.44449597]
[1751433997499,26.10052,2440.1,2440.0,1.3898]
[1751433997793,26.10052,2440.1,2440.0,2.20935]
[1751433997994,26.10052,2440.1,2440.0,1.3898]
[1751433999396,26.10052,2440.1,2440.0,2.20935]
[1751433999797,26.10052,2440.1,2440.0,1.3898]
[1751434000396,26.10052,2440.1,2440.0,2.20935]
[1751434001795,25.281,2440.1,2440.0,2.20935]
[1751434002396,26.10052,2440.1,2440.0,2.20935]
[1751434004099,25.281,2440.1,2440.0,2.20935]
[1751434004297,26.10052,2440.1,2440.0,2.20935]
[1751434004897,0.81952,2440.1,2440.0,2.20935]
[1751434005597,26.08651,2440.2,2440.1,0.81951]
[1751434005796,26.08651,2440.2,2440.1,2.25601]
[1751434006099,26.08651,2440.2,2440.1,2.98111]
[1751434006799,0.81946,2440.3,2440.2,0.81946]
[1751434007003,26.08346,2440.3,2440.2,2.21976]
[1751434007498,0.667,2440.5,2440.4,0.81942]
[1751434007699,26.08239,2440.5,2440.4,0.81942]
[1751434008103,26.08239,2440.5,2440.4,2.93732]
[1751434009201,26.08239,2440.5,2440.4,2.1179]
[1751434009900,0.81939,2440.5,2440.4,2.1179]
[1751434010102,26.07839,2440.5,2440.4,2.1179]
[1751434010803,26.07839,2440.5,2440.4,2.93732]
[1751434011302,26.07839,2440.5,2440.4,2.1179]
[1751434011499,26.07839,2440.5,2440.4,6.17259597]
[1751434012404,26.07839,2440.5,2440.4,2.1179]
[1751434013505,0.81942,2440.4,2440.3,1.54163]
[1751434013707,1.50222,2440.4,2440.3,1.54163]
[1751434014106,1.50222,2440.4,2440.3,2.20033]
[1751434014808,1.50222,2440.4,2440.3,1.3809]
[1751434016511,0.81945,2440.3,2440.2,5.68213631]
[1751434017909,0.81949,2440.2,2440.1,6.36323631]
[1751434019307,0.81949,2440.2,2440.1,5.68213631]
[1751434020613,3.17814243,2440.2,2440.1,5.68213631]
[1751434021108,0.81952,2440.1,2440.0,5.68213631]
[1751434021308,1.53312,2440.1,2440.0,5.68213631]
[1751434022908,26.77412,2440.1,2440.0,5.68213631]
[1751434023611,0.81955,2440.0,2439.9,5.68213631]
[1751434023805,3.17820243,2440.0,2439.9,5.68213631]
[1751434024104,0.81959,2439.9,2439.8,5.68213631]
[1751434024914,0.81959,2439.9,2439.8,6.50175631]
[1751434025215,0.81959,2439.9,2439.8,7.91485631]
[1751434026109,26.05857,2440.0,2439.9,0.81958]
[1751434026310,26.05857,2440.0,2439.9,1.4131]
[1751434029711,0.81957,2440.0,2439.9,2.23269]
[1751434029916,0.81957,2440.0,2439.9,1.4131]
[1751434030722,0.81957,2440.0,2439.9,2.23269]
[1751434032123,0.81957,2440.0,2439.9,1.4131]
[1751434032423,0.81957,2440.0,2439.9,2.23269]
[1751434032622,0.81957,2440.0,2439.9,1.4131]
[1751434033427,0.81957,2440.0,2439.9,2.23269]
[1751434033819,0.81957,2440.0,2439.9,1.4131]
[1751434035625,0.81959,2439.9,2439.8,5.68213631]
[1751434036430,3.17824243,2439.9,2439.8,5.68213631]
[1751434036823,0.81962,2439.8,2439.7,5.68213631]
[1751434037018,1.51822,2439.8,2439.7,5.68213631]
[1751434039126,1.51822,2439.8,2439.7,7.00783631]
[1751434041223,1.51822,2439.8,2439.7,5.68213631]
[1751434045633,1.51822,2439.8,2439.7,7.10973631]
[1751434046740,1.51822,2439.8,2439.7,7.92938631]
[1751434046940,0.81962,2439.8,2439.7,7.92938631]
[1751434048542,0.81962,2439.8,2439.7,2.24725]
[1751434048842,0.81962,2439.8,2439.7,1.4276]
[1751434049240,0.81962,2439.8,2439.7,2.24725]
[1751434050037,0.81962,2439.8,2439.7,1.4276]
[1751434050444,0.81962,2439.8,2439.7,2.24725]
[1751434051543,0.81962,2439.8,2439.7,1.4276]
[1751434051942,0.81965,2439.7,2439.6,0.6941]
[1751434052146,0.81972,2439.5,2439.4,9.61366759]
[1751434052347,3.06135243,2439.7,2439.4,9.61366759]
[1751434052537,0.81972,2439.5,2439.4,0.6766]
[1751434052738,0.81972,2439.5,2439.4,2.0114]
[1751434052941,0.81972,2439.5,2439.4,0.6766]
[1751434053448,0.81972,2439.5,2439.4,1.49635]
[1751434053648,0.81972,2439.5,2439.4,2.83115]
[1751434054048,0.81972,2439.5,2439.4,2.0114]
[1751434054448,0.81972,2439.5,2439.4,2.83115]
[1751434055043,0.81972,2439.5,2439.4,2.0114]
[1751434055348,0.81972,2439.5,2439.4,2.15455]
[1751434055650,1.52237,2439.7,2439.4,3.69345243]
[1751434055851,1.52237,2439.7,2439.5,7.85274857]
[1751434056053,0.7027,2439.7,2439.6,2.15159]
[1751434056351,0.81965,2439.7,2439.6,9.23703857]
[1751434056548,0.81965,2439.7,2439.6,3.53589]
[1751434058555,0.81965,2439.7,2439.6,9.23623148]
[1751434058747,0.81965,2439.7,2439.6,8.54593148]
[1751434058947,0.81965,2439.7,2439.6,2.84559]
[1751434060953,0.81965,2439.7,2439.6,2.0259]
[1751434061353,0.81969,2439.6,2439.5,6.38744148]
[1751434061551,0.81969,2439.6,2439.5,2.91002]
[1751434061751,0.81969,2439.6,2439.5,2.0903]
[1751434063556,0.81969,2439.6,2439.5,2.91002]
[1751434064656,0.81967,2439.7,2439.6,0.81968]
[1751434064851,0.81967,2439.7,2439.6,2.86758]
[1751434065046,0.81967,2439.7,2439.6,2.0479]
[1751434067865,0.81967,2439.7,2439.6,2.86759]
[1751434068157,0.81967,2439.7,2439.6,2.0479]
[1751434069160,0.81967,2439.7,2439.6,2.86759]
[1751434069663,0.81967,2439.7,2439.6,2.0479]
[1751434073666,3.17832243,2439.7,2439.6,0.7047]
[1751434074164,0.81969,2439.6,2439.5,0.6871]
[1751434074363,1.48259,2439.6,2439.5,0.6871]
[1751434074559,1.48259,2439.6,2439.5,2.023]
[1751434074760,1.48259,2439.6,2439.5,1.50682]
[1751434079572,0.81969,2439.6,2439.5,2.8392]
[1751434081173,0.81969,2439.6,2439.5,8.53954148]
[1751434082072,0.81967,2439.7,2439.6,0.81968]
[1751434082272,0.81967,2439.7,2439.6,2.25098]
[1751434082573,0.81967,2439.7,2439.6,1.4313]
[1751434082773,0.81967,2439.7,2439.6,2.25099]
[1751434085178,0.81967,2439.7,2439.6,1.4313]
[1751434085976,0.81969,2439.6,2439.5,5.70034148]
[1751434086579,0.81972,2439.5,2439.4,6.52008148]
[1751434086881,1.54212,2439.5,2439.4,5.70034148]
[1751434089676,0.81975,2439.4,2439.3,5.70034148]
[1751434089876,0.81975,2439.4,2439.3,7.09874148]
[1751434091979,0.81975,2439.4,2439.3,7.91853148]
[1751434094386,0.81973,2439.5,2439.4,0.81975]
[1751434094683,0.81973,2439.5,2439.4,2.22305]
[1751434096585,0.81973,2439.5,2439.4,1.4033]
[1751434096788,0.81973,2439.5,2439.4,2.22305]
[1751434099590,0.81974,2439.5,2439.4,0.81974]
[1751434099786,0.81974,2439.5,2439.4,7.90938148]
[1751434102492,0.7182,2439.8,2439.4,7.08964148]
[1751434102686,26.68582,2439.8,2439.7,4.07871915]
[1751434103490,29.04447243,2439.8,2439.7,4.07871915]
[1751434105391,3.89647243,2439.8,2439.7,4.07871915]
[1751434105596,1.53782,2439.8,2439.7,4.07871915]
[1751434105893,26.68082,2439.8,2439.7,4.07871915]
[1751434106191,26.68082,2439.8,2439.7,5.45941915]
[1751434109692,1.53782,2439.8,2439.7,5.45941915]
[1751434109992,25.96062,2439.8,2439.7,6.27906915]
[1751434111298,12.3574,2440.1,2439.7,6.27906915]
[1751434111299,11.695,2440.1,2439.7,7.81807158]
[1751434111599,36.832,2440.1,2440.0,0.81955]
[1751434112296,36.831,2440.1,2440.0,0.81955]
[1751434112996,36.831,2440.1,2440.0,2.13135]
[1751434114996,37.65052,2440.1,2440.0,1.3118]
[1751434115401,0.81955,2440.0,2439.9,4.07871915]
[1751434115702,1.47985,2440.0,2439.8,5.60831915]
[1751434115898,1.47985,2440.0,2439.9,0.81959]
[1751434116100,26.61285,2440.0,2439.9,0.81959]
[1751434117402,26.61285,2440.0,2439.9,4.89830915]
[1751434117702,26.61285,2440.0,2439.9,4.07871915]
[1751434117900,26.61285,2440.0,2439.8,8.54134148]
[1751434118103,26.61285,2440.0,2439.9,0.81959]
[1751434118903,0.81959,2439.9,2439.8,8.54135148]
[1751434119202,0.81959,2439.9,2439.8,2.84101]
[1751434119500,26.61288,2440.0,2439.9,0.81959]
[1751434119701,26.61288,2440.0,2439.8,2.841]
[1751434120102,0.81959,2439.9,2439.8,2.841]
[1751434120902,26.60587,2440.0,2439.9,0.81959]
[1751434121203,26.60587,2440.0,2439.9,2.19749]
[1751434122003,26.60587,2440.0,2439.9,1.3779]
[1751434122203,28.96452243,2440.0,2439.9,1.3779]
[1751434123205,28.96452243,2440.0,2439.9,5.45200992]
[1751434123406,28.96452243,2440.0,2439.9,4.07410992]
[1751434126206,0.81959,2439.9,2439.8,4.07410992]
[1751434127308,1.47999,2439.9,2439.8,4.07410992]
[1751434128108,0.81962,2439.8,2439.7,4.07410992]
[1751434128307,3.17827243,2439.8,2439.7,4.07410992]
[1751434131213,0.81965,2439.7,2439.6,4.07410992]
[1751434131407,26.62245,2439.7,2439.6,4.07410992]
[1751434135111,27.96035,2439.7,2439.6,4.07410992]
[1751434135508,27.96035,2439.7,2439.3,6.35894148]
[1751434135509,0.81969,2439.6,2439.5,4.07410992]
[1751434135812,3.17834243,2439.6,2439.5,4.07410992]
[1751434136016,8.17834243,2439.6,2439.5,4.07410992]
[1751434136716,8.17834243,2439.6,2439.3,5.70034148]
[1751434136717,0.81972,2439.5,2439.4,4.07410992]
[1751434136917,0.81972,2439.5,2439.4,6.20530992]
[1751434138317,0.81975,2439.4,2439.3,4.07410992]
[1751434138517,25.92975,2439.4,2439.3,4.07410992]
[1751434138918,25.92975,2439.4,2439.3,5.50340992]
[1751434140320,25.92975,2439.4,2439.3,1.4293]
[1751434140919,34.243246,2439.4,2439.3,1.4293]
[1751434141217,34.241246,2439.4,2439.3,2.24909]
[1751434141417,34.241246,2439.4,2439.3,1.4293]
[1751434142216,34.241246,2439.4,2439.3,5.50312891]
[1751434142418,34.241246,2439.4,2439.3,6.32291891]
[1751434142620,34.241246,2439.4,2439.3,5.50312891]
[1751434146623,34.941946,2439.4,2439.3,5.50312891]
[1751434155334,34.941946,2439.4,2439.3,1.4293]
[1751434156028,0.81979,2439.3,2439.2,1.3727]
[1751434156236,0.81982,2439.2,2439.1,5.70034148]
[1751434156437,25.91582,2439.2,2439.1,5.70034148]
[1751434156635,0.81989,2439.0,2438.9,7.74914148]
[1751434156836,25.91489,2439.0,2438.9,7.74914148]
[1751434158039,25.91489,2439.0,2438.9,2.0488]
[1751434158734,0.81992,2438.9,2438.8,5.70034148]
[1751434159231,3.17857243,2438.9,2438.8,7.07624148]
[1751434160240,11.49206843,2438.9,2438.8,5.70034148]
[1751434160836,11.49206843,2438.9,2438.7,0.7103]
[1751434160837,0.81996,2438.8,2438.7,6.41064148]
[1751434161139,26.63876,2438.8,2438.7,0.7103]
[1751434162538,0.81999,2438.7,2438.6,5.70034148]
[1751434162744,3.17864243,2438.7,2438.6,5.70034148]
[1751434164335,0.82002,2438.6,2438.5,7.77414148]
[1751434164544,25.91102,2438.6,2438.5,7.77414148]
[1751434164842,25.91102,2438.6,2438.5,2.0738]
[1751434166335,34.224516,2438.6,2438.5,2.0738]
[1751434167646,34.223516,2438.6,2438.5,2.89386]
[1751434167847,34.223516,2438.6,2438.5,2.0738]
[1751434168246,34.223516,2438.6,2438.5,2.89386]
[1751434168645,34.223516,2438.6,2438.5,2.0738]
[1751434169039,34.223516,2438.6,2438.5,6.14707257]
[1751434169744,34.223516,2438.6,2438.5,6.96713257]
[1751434170146,34.223516,2438.6,2438.5,6.14707257]
[1751434171337,34.223516,2438.6,2438.5,6.96713257]
[1751434171939,9.133516,2438.6,2438.5,6.96713257]
[1751434172149,34.221516,2438.6,2438.5,6.96713257]
[1751434172349,34.221516,2438.6,2438.5,6.14707257]
[1751434175252,34.221516,2438.6,2438.5,5.44917257]
[1751434176956,34.221516,2438.6,2438.5,4.07327257]
[1751434184159,0.82006,2438.5,2438.4,0.7128]
[1751434184359,0.82006,2438.5,2438.4,2.1647]
[1751434184560,1.47656,2438.5,2438.4,2.1647]
[1751434184859,1.47656,2438.5,2438.4,2.98479]
[1751434185059,34.221546,2438.6,2438.4,2.1647]
[1751434185254,25.90805,2438.6,2438.5,1.4519]
[1751434187360,34.221546,2438.6,2438.5,1.4519]
[1751434188763,8.313496,2438.6,2438.5,2.27196]
[1751434188961,34.207516,2438.6,2438.5,2.27196]
[1751434191057,34.207516,2438.6,2438.5,7.15224148]
[1751434191359,36.56616843,2438.6,2438.5,4.88106148]
[1751434191559,0.82009,2438.4,2438.3,2.15502]
[1751434191761,25.89209,2438.4,2438.3,3.50412]
[1751434192263,25.89209,2438.4,2438.3,2.684]
[1751434192561,25.89209,2438.4,2438.3,3.50412]
[1751434193966,25.072,2438.4,2438.3,3.50412]
[1751434194762,0.82008,2438.5,2438.4,0.82009]
[1751434194964,25.88908,2438.5,2438.4,2.19109]
[1751434195163,34.202576,2438.5,2438.4,2.19109]
[1751434196267,34.202576,2438.5,2438.4,1.371]
[1751434196461,34.202576,2438.5,2438.4,2.19109]
[1751434196661,34.202576,2438.5,2438.4,1.371]
[1751434197369,34.202576,2438.5,2438.4,2.19109]
[1751434199165,34.202576,2438.5,2438.4,7.90958126]
[1751434199471,34.202576,2438.5,2438.4,7.08949126]
[1751434200170,34.202576,2438.5,2438.4,7.90958126]
[1751434200665,33.379496,2438.5,2438.4,10.26823369]
[1751434200871,33.379496,2438.5,2438.4,4.54974243]
[1751434201368,12.3596,2439.1,2438.8,0.81995]
[1751434201567,26.55071,2439.0,2438.9,0.81992]
[1751434201766,26.55069,2439.0,2438.9,4.08323892]
[1751434202072,26.55069,2439.0,2438.9,4.78563892]
[1751434202667,26.55069,2439.0,2438.9,4.08323892]
[1751434202866,0.81992,2438.9,2438.8,5.71753614]
[1751434203369,0.81992,2438.9,2438.8,6.53749614]
[1751434203770,0.81992,2438.9,2438.8,5.71753614]
[1751434204075,0.81992,2438.9,2438.8,6.53749614]
[1751434204573,9.133416,2438.9,2438.8,6.53749614]
[1751434204974,9.133416,2438.9,2438.8,5.71753614]
[1751434205574,9.133416,2438.9,2438.7,8.52970614]
[1751434205773,25.06,2438.8,2438.7,8.52970614]
[1751434206173,25.87996,2438.8,2438.7,8.52972614]
[1751434206368,25.06,2438.8,2438.7,8.52972614]
[1751434206871,25.87996,2438.8,2438.7,8.52972614]
[1751434208179,25.06,2438.8,2438.7,8.52972614]
[1751434208679,9.133446,2438.9,2438.8,0.81996]
[1751434208864,34.189446,2438.9,2438.8,2.21116]
[1751434209068,33.369496,2438.9,2438.8,2.21116]
[1751434209474,0.81996,2438.8,2438.7,5.71753614]
[1751434209675,3.17861243,2438.8,2438.7,5.71753614]
[1751434210071,0.81999,2438.7,2438.6,5.71753614]
[1751434210272,26.54559,2438.7,2438.6,5.71753614]
[1751434210574,0.82002,2438.6,2438.5,6.42063614]
[1751434210975,0.82002,2438.6,2438.5,5.71753614]
[1751434211178,0.82009,2438.4,2438.3,2.0671]
[1751434211370,25.87309,2438.4,2438.3,2.0671]
[1751434211676,25.87309,2438.4,2438.3,0.6759]
[1751434212577,0.82012,2438.3,2438.2,0.7031]
[1751434212780,3.07445243,2438.3,2438.1,48.91733759]
[1751434213077,25.87216,2438.2,2438.1,48.91733759]
[1751434213278,0.82019,2438.1,2438.0,8.11733759]
[1751434213576,3.17884243,2438.1,2438.0,8.11733759]
[1751434215179,11.49233843,2438.1,2438.0,8.11733759]
[1751434215578,11.49233843,2438.1,2437.9,0.6717]
[1751434215579,0.82022,2438.0,2437.9,8.78903759]
[1751434215878,25.87222,2438.0,2437.9,8.78903759]
[1751434216179,26.58192,2438.0,2437.9,8.78903759]
[1751434216574,8.313496,2438.1,2438.0,0.82022]
[1751434216782,33.365496,2438.1,2438.0,2.22092]
[1751434217574,33.364496,2438.1,2438.0,2.22092]
[1751434218080,33.364496,2438.1,2438.0,10.33825759]
[1751434220480,33.364496,2438.1,2438.0,2.22092]
[1751434221084,8.313496,2438.1,2438.0,2.22092]
[1751434221384,25.049,2438.3,2438.0,8.45121]
[1751434221576,25.049,2438.3,2438.2,0.82016]
[1751434221977,25.049,2438.3,2438.2,2.26466]
[1751434222174,25.049,2438.3,2438.2,7.97507514]
[1751434223786,25.049,2438.3,2438.2,2.26466]
[1751434224581,33.362496,2438.3,2438.2,2.26466]
[1751434224787,34.025196,2438.3,2438.0,0.8202]
[1751434224979,0.82019,2438.1,2438.0,0.8202]
[1751434225178,0.82018,2438.2,2437.9,1.3697]
[1751434225388,25.046,2438.2,2438.1,0.82019]
[1751434225987,25.046,2438.2,2438.1,2.89979]
[1751434226484,25.86616,2438.2,2438.1,2.0796]
[1751434226984,25.86616,2438.2,2438.1,2.89979]
[1751434227184,25.046,2438.2,2438.1,2.89979]
[1751434227489,8.313496,2438.3,2438.2,0.82016]
[1751434227689,33.358496,2438.3,2438.2,4.50991243]
[1751434229281,8.313496,2438.3,2438.2,4.50991243]
[1751434229888,34.177616,2438.3,2438.2,2.15126]
[1751434230287,34.176616,2438.3,2438.2,2.15126]
[1751434232898,33.356496,2438.3,2438.2,2.15126]
[1751434233192,34.176616,2438.3,2438.2,2.15126]
[1751434233388,34.877616,2438.3,2438.2,2.15126]
[1751434234192,9.834616,2438.3,2438.2,2.15126]
[1751434234392,34.056496,2438.3,2438.2,2.15126]
[1751434235286,9.014496,2438.3,2438.2,2.15126]
[1751434235482,33.354496,2438.3,2438.2,2.85266]
[1751434235885,34.174616,2438.3,2438.2,2.85266]
[1751434236194,33.354496,2438.3,2438.2,2.85266]
[1751434237187,34.174616,2438.3,2438.2,2.85266]
[1751434238795,34.174616,2438.3,2438.2,2.15126]
[1751434239890,34.174616,2438.3,2438.2,1.3311]
[1751434240094,0.82016,2438.2,2438.1,7.23851646]
[1751434240293,1.50786,2438.2,2438.1,5.70844646]
[1751434240898,0.82019,2438.1,2438.0,5.70844646]
[1751434241198,28.21484243,2438.1,2438.0,5.70844646]
[1751434242496,28.21484243,2438.1,2437.8,5.70844646]
[1751434242497,0.82026,2437.9,2437.8,5.70844646]
[1751434242703,28.21491243,2437.9,2437.8,5.70844646]
[1751434243295,0.82029,2437.8,2437.7,5.70844646]
[1751434243494,1.48719,2437.8,2437.7,5.70844646]
[1751434243801,0.6669,2437.8,2437.7,6.52877646]
[1751434244103,1.48719,2437.8,2437.7,6.52877646]
[1751434244495,12.3508,2438.2,2437.9,0.82025]
[1751434244793,0.6669,2438.0,2437.9,0.82025]
[1751434245597,1.48715,2438.0,2437.8,8.65801433]
[1751434245793,25.035,2437.9,2437.8,2.94537]
[1751434246194,8.980396,2438.0,2437.9,0.82026]
[1751434246391,34.835626,2438.0,2437.9,0.82026]
[1751434246601,0.82026,2437.9,2437.8,8.65801433]
[1751434246798,34.835646,2438.0,2437.9,0.82026]
[1751434247302,34.835646,2438.0,2437.9,4.90105184]
[1751434247502,34.835646,2438.0,2437.8,4.90107184]
[1751434247694,0.82026,2437.9,2437.8,4.90107184]
[1751434247897,25.85626,2437.9,2437.8,4.90107184]
[1751434248095,25.036,2437.9,2437.8,4.90107184]
[1751434248903,25.85626,2437.9,2437.8,4.90107184]
[1751434249800,25.85626,2437.9,2437.8,4.08079184]
[1751434250292,34.169756,2437.9,2437.8,4.08079184]
[1751434251396,0.82029,2437.8,2437.7,4.08079184]
[1751434252204,0.82029,2437.8,2437.7,4.90112184]
[1751434252901,0.82029,2437.8,2437.7,4.08079184]
[1751434253203,0.82029,2437.8,2437.7,4.90112184]
[1751434253510,34.169776,2437.9,2437.7,4.90112184]
[1751434253700,34.169776,2437.9,2437.8,4.08079184]
[1751434253900,34.169776,2437.9,2437.8,4.90108184]
[1751434254203,34.169776,2437.9,2437.8,4.08079184]
[1751434254404,34.169776,2437.9,2437.8,4.90108184]
[1751434255006,9.133776,2437.9,2437.8,4.90108184]
[1751434255303,33.345496,2437.9,2437.8,4.90108184]
[1751434255507,34.165756,2437.9,2437.8,6.21368184]
[1751434256605,8.313496,2437.9,2437.8,6.21368184]
[1751434256804,33.345496,2437.9,2437.8,6.21368184]
[1751434257006,8.313496,2437.9,2437.8,6.21368184]
[1751434257204,33.344496,2437.9,2437.8,2.13289]
[1751434259005,34.164756,2437.9,2437.8,2.13289]
[1751434259206,33.344496,2437.9,2437.8,2.13289]
[1751434259410,8.313496,2437.9,2437.8,2.13289]
[1751434259607,33.342496,2437.9,2437.8,2.13289]
[1751434265303,8.313496,2437.9,2437.8,2.13289]
[1751434265507,8.313496,2437.9,2437.8,5.20914243]
[1751434265714,33.338496,2437.9,2437.8,5.20914243]
[1751434266314,33.338496,2437.9,2437.8,46.00914243]
[1751434266817,33.338496,2437.9,2437.8,43.65049]
[1751434268016,33.338496,2437.9,2437.8,46.00914243]
[1751434268315,33.338496,2437.9,2437.8,51.72178676]
[1751434268718,33.338496,2437.9,2437.8,51.00418676]
[1751434268916,33.338496,2437.9,2437.8,51.67508676]
[1751434269118,8.313496,2437.9,2437.8,51.67508676]
[1751434269318,33.336496,2437.9,2437.8,51.67508676]
[1751434271327,33.336496,2437.9,2437.8,49.31643433]
[1751434271627,33.336496,2437.9,2437.8,51.67508676]
[1751434272425,33.336496,2437.9,2437.8,45.96244243]
[1751434273527,33.336496,2437.9,2437.8,43.60379]
[1751434278332,33.336496,2437.9,2437.8,2.80379]
[1751434281336,33.336496,2437.9,2437.8,0.82029]
[1751434281737,33.336496,2437.9,2437.8,2.16079]
[1751434282038,33.336496,2437.9,2437.8,4.51944243]
[1751434282334,8.313496,2437.9,2437.8,4.51944243]
[1751434282536,33.326496,2437.9,2437.8,4.51944243]
[1751434282936,8.313496,2437.9,2437.8,4.51944243]
[1751434283238,33.325496,2437.9,2437.8,4.51944243]
[1751434286839,33.325496,2437.9,2437.8,2.16079]
[1751434290746,8.313496,2437.9,2437.8,2.16079]
[1751434291041,33.989196,2437.9,2437.8,0.82029]
[1751434291244,34.809456,2437.9,2437.8,0.82029]
[1751434291637,33.989196,2437.9,2437.8,0.82029]
[1751434292345,34.809456,2437.9,2437.8,0.82029]
[1751434293643,33.989196,2437.9,2437.8,0.82029]
[1751434294346,8.983196,2437.9,2437.8,0.82029]
[1751434294543,33.988196,2437.9,2437.8,0.82029]
[1751434297241,4.600488,2437.9,2437.8,3.17894243]
[1751434297544,4.600488,2437.9,2437.8,4.55654243]
[1751434297745,4.600488,2437.9,2437.8,9.96412014]
[1751434298844,4.600488,2437.9,2437.8,10.62932014]
[1751434301148,4.600488,2437.9,2437.8,8.27066771]
[1751434301649,4.600488,2437.9,2437.8,2.86309]
[1751434302651,4.600488,2437.9,2437.8,0.82029]
[1751434302940,4.600488,2437.9,2437.7,8.15492351]
[1751434302941,0.82029,2437.8,2437.7,8.15492351]
[1751434303147,31.95614043,2437.9,2437.7,8.15492351]
[1751434303336,32.77643043,2437.9,2437.7,8.97523351]
[1751434303540,0.82029,2437.8,2437.6,0.82034]
[1751434304051,0.6757,2437.7,2437.6,0.82034]
[1751434305236,5.276188,2437.7,2437.6,0.82034]
[1751434305545,5.276188,2437.7,2437.6,6.54482319]
[1751434305749,5.276188,2437.7,2437.6,5.72448319]
[1751434306047,5.276188,2437.7,2437.6,6.54484319]
[1751434309351,6.096518,2437.7,2437.6,5.72448319]
[1751434311040,6.096518,2437.7,2437.5,6.54486319]
[1751434311248,6.769718,2437.7,2437.5,6.54486319]
[1751434311448,6.769718,2437.7,2437.5,0.82038]
[1751434311748,8.30804043,2437.7,2437.4,8.15492351]
[1751434311951,0.82039,2437.5,2437.4,8.15492351]
[1751434312148,24.994,2437.5,2437.4,8.15492351]
[1751434312349,25.81439,2437.5,2437.3,0.82044]
[1751434312546,0.7223,2437.4,2437.3,0.82044]
[1751434312851,0.7223,2437.4,2437.3,6.54129489]
[1751434313545,0.7223,2437.4,2437.3,8.89994732]
[1751434313747,6.094018,2437.7,2437.6,0.82036]
[1751434313946,31.087018,2437.7,2437.6,4.90517694]
[1751434314247,31.087018,2437.7,2437.6,0.82036]
[1751434315050,31.809318,2437.7,2437.6,0.82036]
[1751434315250,31.809318,2437.7,2437.5,3.17902243]
[1751434315953,31.809318,2437.7,2437.5,0.82037]
[1751434317158,30.988988,2437.7,2437.4,6.40805489]
[1751434317455,30.315788,2437.7,2437.6,0.82036]
[1751434319054,30.315788,2437.7,2437.4,5.72085489]
[1751434319354,0.82036,2437.6,2437.4,5.72085489]
[1751434319560,24.991,2437.5,2437.4,8.89993732]
[1751434320354,29.591488,2437.5,2437.4,10.32553732]
[1751434320550,4.600488,2437.5,2437.4,10.32553732]
[1751434324562,4.600488,2437.5,2437.4,4.60468243]
[1751434325162,4.600488,2437.5,2437.4,3.88178243]
[1751434326953,4.600488,2437.5,2437.4,10.95653417]
[1751434328564,4.600488,2437.5,2437.4,5.24308243]
[1751434329559,4.4908,2437.5,2437.4,5.24308243]
[1751434339166,0.76574059,2437.5,2437.4,5.24308243]
[1751434343086,0.76574059,2437.5,2437.4,13.39800594]
[1751434347286,0.14422514,2437.5,2437.4,13.39800594]